bitfinex/quotes_BTCUSD_20250822
["timestamp","ask_amount","ask_price","bid_price","bid_amount"]
[1755861606395,0.72932732,112570.0,112560.0,0.21148497]
[1755861606556,0.70260832,112570.0,112560.0,0.20926394]
[1755861607242,0.3468506,112570.0,112560.0,0.29614869]
[1755861607421,0.005,112570.0,112560.0,0.32286269]
[1755861607658,0.3468506,112570.0,112560.0,0.37065904]
[1755861608276,0.3458506,112570.0,112560.0,0.32186269]
[1755861608426,0.3458506,112570.0,112560.0,0.32286269]
[1755861608646,0.3418506,112570.0,112560.0,0.32086269]
[1755861609022,0.36296499,112590.0,112580.0,0.17765144]
[1755861609223,0.36296499,112590.0,112580.0,0.21800256]
[1755861609499,0.36296499,112590.0,112580.0,0.21700256]
[1755861610316,0.02211439,112590.0,112580.0,0.30388731]
[1755861610543,0.001,112590.0,112580.0,0.30388731]
[1755861610742,0.3428506,112590.0,112580.0,0.33059531]
[1755861611181,0.3428506,112590.0,112580.0,0.37839166]
[1755861611557,0.3418506,112590.0,112580.0,0.37839166]
[1755861611994,0.3428506,112590.0,112580.0,0.38039166]
[1755861612420,0.3418506,112590.0,112580.0,0.37839166]
[1755861612624,0.3448506,112590.0,112580.0,0.37939166]
[1755861612947,0.3458506,112590.0,112580.0,0.38139166]
[1755861613122,0.3468506,112590.0,112580.0,0.38439166]
[1755861613335,0.3458506,112590.0,112580.0,0.38239166]
[1755861613490,0.3468506,112590.0,112580.0,0.40384068]
[1755861613686,0.005,112590.0,112580.0,0.40384068]
[1755861614069,0.3468506,112590.0,112580.0,0.40384068]
[1755861614267,0.3468506,112590.0,112580.0,0.45384068]
[1755861614467,0.005,112590.0,112580.0,0.45384068]
[1755861615138,0.005,112590.0,112580.0,0.40604433]
[1755861615277,0.005,112590.0,112580.0,0.47881981]
[1755861615716,0.004,112590.0,112580.0,0.42704433]
[1755861615921,0.3418506,112590.0,112580.0,0.34804433]
[1755861616094,0.3428506,112590.0,112580.0,0.40204433]
[1755861616297,0.3438506,112590.0,112580.0,0.40604433]
[1755861616535,0.3428506,112590.0,112580.0,0.40204433]
[1755861616740,0.6837012,112590.0,112580.0,0.34804433]
[1755861616898,30.0005,112600.0,112590.0,0.17763566]
[1755861617104,30.3423506,112600.0,112590.0,0.31482644]
[1755861617961,30.71404692,112600.0,112590.0,0.31283644]
[1755861618287,30.6837012,112600.0,112590.0,0.30989644]
[1755861618607,31.0237012,112600.0,112590.0,0.13226078]
[1755861618819,31.0237012,112600.0,112590.0,0.30989644]
[1755861619022,31.0237012,112600.0,112590.0,0.04537603]
[1755861619447,30.51761989,112600.0,112590.0,0.04537603]
[1755861619669,31.0237012,112600.0,112590.0,0.17763566]
[1755861620084,31.0267012,112600.0,112590.0,0.17863566]
[1755861620631,31.0237012,112600.0,112580.0,0.21502256]
[1755861620803,0.6837012,112590.0,112580.0,0.30190731]
[1755861621008,0.6837012,112590.0,112580.0,0.30389731]
[1755861621807,0.6837012,112590.0,112580.0,0.29896731]
[1755861624916,1.20233686,112590.0,112580.0,0.001]
[1755861625255,1.20233686,112590.0,112570.0,0.24810502]
[1755861625467,0.3418506,112580.0,112570.0,0.33792977]
[1755861625677,0.3418506,112580.0,112570.0,0.33991977]
[1755861626063,0.3418506,112580.0,112570.0,0.39524841]
[1755861627071,0.3418506,112580.0,112570.0,0.39624841]
[1755861627678,0.3428506,112580.0,112570.0,0.39824841]
[1755861629011,0.3428506,112580.0,112570.0,0.32781037]
[1755861630279,0.3428506,112580.0,112570.0,0.15014339]
[1755861630704,0.3428506,112580.0,112570.0,0.32781061]
[1755861630906,0.86235264,112580.0,112570.0,0.14521339]
[1755861631110,0.89219836,112580.0,112570.0,0.14521339]
[1755861631377,0.6847012,112580.0,112570.0,0.32288061]
[1755861631573,0.6847012,112580.0,112570.0,0.32582061]
[1755861631978,0.52050204,112580.0,112570.0,0.14815339]
[1755861632179,0.53440609,112580.0,112570.0,0.14815339]
[1755861635532,0.19255549,112580.0,112570.0,0.14815339]
[1755861635760,0.53440609,112580.0,112570.0,0.14815339]
[1755861637368,0.01490405,112580.0,112570.0,0.32582061]
[1755861637537,0.35675465,112580.0,112570.0,0.32781061]
[1755861639052,0.12115769,112580.0,112570.0,0.32781061]
[1755861639418,0.29880913,112580.0,112570.0,0.14815339]
[1755861639638,0.64065973,112580.0,112570.0,0.05832864]
[1755861639851,1.01050545,112580.0,112570.0,0.003]
[1755861640433,0.98065973,112580.0,112570.0,0.003]
[1755861644572,1.20135264,112580.0,112570.0,0.003]
[1755861644930,1.23119836,112580.0,112570.0,0.003]
[1755861645129,1.20135264,112580.0,112570.0,0.003]
[1755861646009,1.22806864,112580.0,112570.0,0.003]
[1755861646239,0.54436744,112580.0,112570.0,0.003]
[1755861646355,0.88621804,112580.0,112570.0,0.00594]
[1755861646561,0.88621804,112580.0,112570.0,0.003]
[1755861646778,1.22446864,112580.0,112570.0,0.003]
[1755861647508,1.22446864,112580.0,112570.0,0.002]
[1755861648611,0.51766722,112570.0,112560.0,0.0031585]
[1755861648814,1.20136842,112570.0,112560.0,0.0053085]
[1755861649336,1.21527412,112570.0,112560.0,0.0053085]
[1755861650087,1.21627412,112570.0,112560.0,0.0083085]
[1755861650387,1.20236842,112570.0,112560.0,0.0083085]
[1755861650619,1.20236842,112570.0,112560.0,0.0093085]
[1755861650821,1.20236842,112570.0,112560.0,0.04071632]
[1755861652100,1.20236842,112570.0,112560.0,0.03856632]
[1755861652310,1.20236842,112570.0,112560.0,0.0071585]
[1755861653273,0.51866722,112570.0,112560.0,0.0093085]
[1755861653512,1.21627419,112570.0,112560.0,0.0093085]
[1755861654806,1.03860697,112570.0,112560.0,0.18699151]
[1755861655768,0.69675637,112570.0,112560.0,0.18699151]
[1755861655985,1.0247012,112570.0,112560.0,0.18699151]
[1755861656200,1.0247012,112570.0,112560.0,0.23527925]
[1755861656562,1.20236842,112570.0,112560.0,0.23527925]
[1755861656995,1.0247012,112570.0,112560.0,0.23527925]
[1755861657662,1.20236842,112570.0,112560.0,0.23527925]
[1755861657959,1.20236842,112570.0,112560.0,0.05759624]
[1755861658105,1.0247012,112570.0,112560.0,0.23527925]
[1755861658895,1.20236842,112570.0,112560.0,0.23527925]
[1755861659096,1.0386069,112570.0,112560.0,0.23527925]
[1755861659885,0.6967563,112570.0,112560.0,0.322164]
[1755861660084,0.3567563,112570.0,112560.0,0.36991327]
[1755861660924,0.0149057,112570.0,112560.0,0.36991327]
[1755861661126,0.3567563,112570.0,112560.0,0.36991327]
[1755861661330,0.0149057,112570.0,112560.0,0.36991327]
[1755861661529,0.3567563,112570.0,112560.0,0.36991327]
[1755861665773,0.3567563,112570.0,112560.0,0.19223026]
[1755861665929,0.3567563,112570.0,112560.0,0.36991327]
[1755861666339,0.6986069,112570.0,112560.0,0.36991327]
[1755861666725,0.87627412,112570.0,112560.0,0.19008026]
[1755861666926,0.87627412,112570.0,112560.0,0.05237624]
[1755861667151,0.90611998,112570.0,112560.0,0.0040885]
[1755861667439,1.23221428,112570.0,112560.0,0.0040885]
[1755861668039,1.20236842,112570.0,112560.0,0.0040885]
[1755861674286,0.85951782,112570.0,112560.0,0.0040885]
[1755861674494,1.20136842,112570.0,112560.0,0.0040885]
[1755861674709,1.20136842,112570.0,112560.0,0.0071585]
[1755861676482,1.20136842,112570.0,112560.0,0.0040885]
[1755861679666,1.20136842,112570.0,112560.0,0.0070585]
[1755861679836,1.2152741,112570.0,112560.0,0.0070585]
[1755861680878,1.2152741,112570.0,112560.0,0.0040885]
[1755861682806,1.2152741,112570.0,112560.0,0.0070585]
[1755861684820,1.2152741,112570.0,112560.0,0.0040885]
[1755861685619,1.24511996,112570.0,112560.0,0.0040885]
[1755861686050,1.23121428,112570.0,112560.0,0.0040885]
[1755861686373,1.25793328,112570.0,112560.0,0.0040885]
[1755861687016,1.22808742,112570.0,112560.0,0.0040885]
[1755861688884,1.25793328,112570.0,112560.0,0.0040885]
[1755861689321,1.70056055,112570.0,112560.0,1e-08]
[1755861689538,0.5176988,112550.0,112540.0,4e-05]
[1755861689724,0.8595494,112550.0,112540.0,4e-05]
[1755861689965,1.26321064,112550.0,112540.0,4e-05]
[1755861690169,1.2014,112550.0,112540.0,0.00517]
[1755861690580,1.21530942,112550.0,112540.0,0.00517]
[1755861690790,1.24203342,112550.0,112540.0,0.00517]
[1755861691216,1.24403342,112550.0,112540.0,0.00517]
[1755861692333,1.24703342,112550.0,112540.0,0.00617]
[1755861692545,1.24703342,112550.0,112540.0,0.00517]
[1755861692927,1.24703342,112550.0,112540.0,0.00617]
[1755861693126,1.24903342,112550.0,112540.0,0.00717]
[1755861693699,1.24703342,112550.0,112540.0,0.00617]
[1755861693900,1.24803342,112550.0,112540.0,0.00617]
[1755861698630,0.90618282,112550.0,112540.0,0.00617]
[1755861698830,1.24803342,112550.0,112540.0,0.00617]
[1755861699090,1.234124,112550.0,112540.0,0.00617]
[1755861699783,1.2074,112550.0,112540.0,0.00617]
[1755861699982,1.2074,112550.0,112540.0,0.00104]
[1755861700186,1.26729664,112550.0,112540.0,0.00104]
[1755861700795,1.60914724,112550.0,112540.0,0.00104]
[1755861701940,1.28120672,112550.0,112540.0,0.00104]
[1755861702344,1.25327486,112550.0,112540.0,0.00104]
[1755861702604,1.22131008,112550.0,112540.0,0.00104]
[1755861702836,1.59109254,112550.0,112540.0,0.00104]
[1755861703042,1.56316068,112550.0,112540.0,0.00104]
[1755861703457,1.59109254,112550.0,112540.0,0.00104]
[1755861703666,1.56316068,112550.0,112540.0,0.00104]
[1755861703870,1.56216068,112550.0,112540.0,0.00104]
[1755861704080,1.22031008,112550.0,112540.0,0.00104]
[1755861704287,1.22231008,112550.0,112540.0,0.00104]
[1755861704901,1.21731008,112550.0,112540.0,4e-05]
[1755861705107,1.21731008,112550.0,112540.0,0.00104]
[1755861705256,1.21931008,112550.0,112540.0,0.00104]
[1755861706195,1.2054,112550.0,112540.0,0.00104]
[1755861708586,1.2054,112550.0,112540.0,0.00423]
[1755861709299,1.21930983,112550.0,112540.0,0.00423]
[1755861715194,1.21930983,112550.0,112540.0,0.00622]
[1755861715667,1.2054,112550.0,112540.0,0.00622]
[1755861719061,1.21930912,112550.0,112540.0,0.00622]
[1755861721028,1.21930912,112550.0,112540.0,0.00104]
[1755861721473,1.24724098,112550.0,112540.0,0.00104]
[1755861722832,1.24724098,112550.0,112540.0,0.00423]
[1755861723228,1.24724098,112550.0,112540.0,0.00104]
[1755861724564,1.62156935,112550.0,112540.0,0.00104]
[1755861727366,1.27971875,112550.0,112540.0,0.00104]
[1755861727785,1.25178689,112550.0,112540.0,0.00104]
[1755861728032,1.27971875,112550.0,112540.0,0.00104]
[1755861728386,1.62156935,112550.0,112540.0,0.00104]
[1755861729016,1.59363749,112550.0,112540.0,0.00104]
[1755861729219,1.25178689,112550.0,112540.0,0.00104]
[1755861730014,1.21930912,112550.0,112540.0,0.00104]
[1755861731396,1.21930912,112550.0,112540.0,0.00423]
[1755861732234,1.21930912,112550.0,112540.0,0.00622]
[1755861732380,1.24603512,112550.0,112540.0,0.00622]
[1755861732791,1.232126,112550.0,112540.0,0.00622]
[1755861736988,0.5216988,112550.0,112540.0,0.00622]
[1755861737208,0.8635494,112550.0,112540.0,0.00622]
[1755861737445,0.6858506,112550.0,112540.0,0.18615602]
[1755861737632,0.6858506,112550.0,112540.0,0.23108903]
[1755861737844,0.6858506,112550.0,112540.0,0.05337444]
[1755861738056,0.8635494,112550.0,112540.0,0.05337444]
[1755861738476,0.8635494,112550.0,112540.0,0.05559587]
[1755861738710,0.6858506,112550.0,112540.0,0.05559587]
[1755861738891,0.6838506,112550.0,112540.0,0.05459587]
[1755861739102,0.6818506,112550.0,112540.0,0.05459587]
[1755861739311,0.8625494,112550.0,112540.0,0.05659587]
[1755861739723,0.8605494,112550.0,112540.0,0.05659587]
[1755861740167,0.8605494,112550.0,112540.0,0.05537444]
[1755861741237,0.8605494,112550.0,112540.0,0.05759587]
[1755861741653,0.87445778,112550.0,112540.0,0.05759587]
[1755861742079,0.53260718,112550.0,112540.0,0.05759587]
[1755861742255,0.87445778,112550.0,112540.0,0.05759587]
[1755861743043,0.69675898,112550.0,112540.0,0.23531046]
[1755861743418,0.35490838,112550.0,112540.0,0.05537444]
[1755861743696,0.69675898,112550.0,112540.0,0.05759587]
[1755861744558,0.87445778,112550.0,112540.0,0.05759587]
[1755861746084,0.8605494,112550.0,112540.0,0.05759587]
[1755861747160,0.8605494,112550.0,112540.0,0.05537444]
[1755861748613,0.8605494,112550.0,112540.0,0.05759587]
[1755861748961,0.6828506,112550.0,112540.0,0.05759587]
[1755861749372,0.87445765,112550.0,112540.0,0.05759587]
[1755861750514,0.87445765,112550.0,112540.0,0.05537444]
[1755861751286,0.87445765,112550.0,112540.0,0.05759587]
[1755861752042,0.87445765,112550.0,112540.0,0.05537444]
[1755861753637,0.87445765,112550.0,112540.0,0.05759587]
[1755861754382,0.87445765,112550.0,112540.0,0.05537444]
[1755861755028,0.87445765,112550.0,112540.0,0.05237444]
[1755861755265,0.87345765,112550.0,112540.0,0.05237444]
[1755861755607,0.87445765,112550.0,112540.0,0.05437444]
[1755861755823,0.87445765,112550.0,112540.0,0.05337444]
[1755861755995,0.8615494,112550.0,112540.0,0.05337444]
[1755861756235,0.8615494,112550.0,112540.0,0.05437444]
[1755861756437,0.8615494,112550.0,112540.0,0.05659587]
[1755861757409,0.8615494,112550.0,112540.0,0.05437444]
[1755861758568,0.8615494,112550.0,112540.0,0.05659587]
[1755861759433,0.87545777,112550.0,112540.0,0.05659587]
[1755861759639,0.69775897,112550.0,112540.0,0.32119521]
[1755861759831,0.35775897,112550.0,112540.0,0.31897378]
[1755861760245,0.01590837,112550.0,112540.0,0.31897378]
[1755861760449,0.35771637,112550.0,112540.0,0.31897378]
[1755861760901,0.35771637,112550.0,112540.0,0.35877531]
[1755861762385,0.35776971,112550.0,112540.0,0.35877531]
[1755861764658,0.01590837,112550.0,112540.0,0.35877531]
[1755861764935,0.35776971,112550.0,112540.0,0.35877531]
[1755861767954,0.01590837,112550.0,112540.0,0.35877531]
[1755861768080,0.35776971,112550.0,112540.0,0.35877531]
[1755861768592,0.34386134,112550.0,112540.0,0.35877531]
[1755861770351,0.34386134,112550.0,112540.0,0.62547531]
[1755861770998,0.34386134,112550.0,112540.0,0.69383531]
[1755861771566,0.002,112550.0,112540.0,0.69383531]
[1755861771761,0.34386134,112550.0,112540.0,0.69383531]
[1755861771963,0.002,112550.0,112540.0,0.69383531]
[1755861772162,0.34386134,112550.0,112540.0,0.75774341]
[1755861772365,0.002,112550.0,112540.0,0.75774341]
[1755861773445,0.002,112550.0,112540.0,0.69383531]
[1755861773859,0.002,112550.0,112540.0,0.71128433]
[1755861774594,0.002,112550.0,112540.0,0.77519243]
[1755861777290,0.13956745,112560.0,112550.0,0.1776988]
[1755861777496,0.13956745,112560.0,112550.0,0.47769869]
[1755861778929,0.13956745,112560.0,112550.0,0.47869869]
[1755861779136,0.13956745,112560.0,112550.0,0.74539869]
[1755861779335,0.14056745,112560.0,112550.0,0.74639869]
[1755861779738,0.001,112560.0,112550.0,0.74639869]
[1755861779943,0.001,112560.0,112550.0,0.76384771]
[1755861780735,0.001,112560.0,112550.0,0.61304771]
[1755861781129,0.001,112560.0,112550.0,0.76384771]
[1755861781704,0.001,112560.0,112550.0,0.76284771]
[1755861781984,0.001,112560.0,112550.0,0.76484771]
[1755861782181,0.35581594,112570.0,112560.0,0.17768301]
[1755861782360,0.35581594,112570.0,112560.0,0.3138422]
[1755861782562,0.35581594,112570.0,112560.0,0.3168122]
[1755861783384,0.35581594,112570.0,112560.0,0.3178122]
[1755861783555,0.35681594,112570.0,112560.0,0.3208122]
[1755861784372,0.35668114,112570.0,112560.0,0.3208122]
[1755861785240,0.35668114,112570.0,112560.0,0.5865122]
[1755861785624,0.35668114,112570.0,112560.0,0.7373122]
[1755861785831,0.35568114,112570.0,112560.0,0.5835122]
[1755861786046,0.35568114,112570.0,112560.0,0.7343122]
[1755861786249,0.35668114,112570.0,112560.0,0.7353122]
[1755861786462,0.35568114,112570.0,112560.0,0.7353122]
[1755861786810,0.35668114,112570.0,112560.0,0.7373122]
[1755861787209,0.0149546,112570.0,112560.0,0.7373122]
[1755861787459,0.35668114,112570.0,112560.0,0.7373122]
[1755861788908,0.3427749,112570.0,112560.0,0.7373122]
[1755861791514,0.34172654,112570.0,112560.0,0.7373122]
[1755861792925,0.34172654,112570.0,112560.0,0.7372722]
[1755861793155,0.34172654,112570.0,112560.0,0.5865122]
[1755861793355,0.34172654,112570.0,112560.0,0.7372722]
[1755861793973,0.51939376,112570.0,112560.0,0.13703919]
[1755861794286,0.88905216,112570.0,112560.0,0.28779919]
[1755861794686,0.91576716,112570.0,112560.0,0.28779919]
[1755861794889,0.8878353,112570.0,112560.0,0.28779919]
[1755861795091,0.8878353,112570.0,112560.0,0.28679919]
[1755861795548,0.8878353,112570.0,112560.0,0.28479919]
[1755861795742,0.8888353,112570.0,112560.0,0.28679919]
[1755861796145,0.8888353,112570.0,112560.0,0.13403919]
[1755861796305,0.54822245,112570.0,112560.0,0.23964475]
[1755861796686,0.54822245,112570.0,112560.0,0.08888475]
[1755861796885,0.54822245,112570.0,112560.0,0.23964475]
[1755861797497,0.54822245,112570.0,112560.0,0.08888475]
[1755861797706,1.23006268,112570.0,112560.0,0.15276]
[1755861797842,1.23006268,112570.0,112560.0,0.168036]
[1755861799046,1.23106268,112570.0,112560.0,0.002]
[1755861799217,0.1776988,112550.0,112540.0,0.10820153]
[1755861799436,0.51953903,112550.0,112540.0,0.34584628]
[1755861799953,0.54625703,112550.0,112540.0,0.34584628]
[1755861801162,0.54625703,112550.0,112540.0,0.12672628]
[1755861801371,0.54625703,112550.0,112540.0,0.3466798]
[1755861801567,0.54625703,112550.0,112540.0,0.21999352]
[1755861801772,0.54625703,112550.0,112540.0,0.1518]
[1755861802345,0.54725703,112550.0,112540.0,0.1548]
[1755861802546,0.54625703,112550.0,112540.0,0.1508]
[1755861802933,0.54725703,112550.0,112540.0,0.1528]
[1755861804934,0.54725703,112550.0,112540.0,0.00204]
[1755861805126,0.54725703,112550.0,112540.0,0.1528]
[1755861805441,0.54725703,112550.0,112540.0,0.17915789]
[1755861809847,0.54725703,112550.0,112540.0,0.02839789]
[1755861810053,0.54725703,112550.0,112540.0,0.1528]
[1755861810407,0.54725703,112550.0,112540.0,0.00204]
[1755861810610,0.54725703,112550.0,112540.0,0.1528]
[1755861811246,0.54725703,112550.0,112540.0,0.00204]
[1755861812008,0.90116607,112550.0,112540.0,0.00204]
[1755861812846,1.05192607,112550.0,112540.0,0.00204]
[1755861813402,1.05188607,112550.0,112540.0,0.00204]
[1755861817892,1.07981793,112550.0,112540.0,0.00204]
[1755861818301,1.42201566,112550.0,112540.0,0.00204]
[1755861818880,1.42101566,112550.0,112540.0,4e-05]
[1755861819032,1.79661717,112550.0,112540.0,4e-05]
[1755861819240,1.76968531,112550.0,112540.0,0.00204]
[1755861819446,1.72319374,112550.0,112540.0,0.00204]
[1755861819854,1.57247374,112550.0,112540.0,0.00204]
[1755861820057,1.72319374,112550.0,112540.0,0.00204]
[1755861822354,1.38125088,112550.0,112540.0,0.00204]
[1755861822556,1.39516097,112550.0,112540.0,0.00204]
[1755861826031,1.24444097,112550.0,112540.0,0.00204]
[1755861826240,1.39516097,112550.0,112540.0,0.00204]
[1755861826435,1.38125088,112550.0,112540.0,0.00204]
[1755861828428,1.40918274,112550.0,112540.0,0.00204]
[1755861828624,1.38125088,112550.0,112540.0,0.00204]
[1755861829203,1.40818274,112550.0,112540.0,0.00204]
[1755861829402,6.39516154,112550.0,112540.0,4e-05]
[1755861829794,6.39616154,112550.0,112540.0,0.00104]
[1755861830314,5.71204746,112550.0,112540.0,0.00104]
[1755861830514,6.39616154,112550.0,112540.0,0.00104]
[1755861830721,6.39416154,112550.0,112540.0,0.00104]
[1755861831208,6.39616154,112550.0,112540.0,0.00104]
[1755861834174,6.41272224,112550.0,112540.0,0.00104]
[1755861836083,6.39881209,112550.0,112540.0,0.00104]
[1755861836725,6.45932648,112550.0,112540.0,0.00104]
[1755861836936,6.45932697,112550.0,112540.0,0.00104]
[1755861837496,6.45632697,112550.0,112540.0,4e-05]
[1755861837902,6.30960697,112550.0,112540.0,0.00104]
[1755861838114,6.43235511,112550.0,112540.0,0.00104]
[1755861838608,6.43456675,112550.0,112540.0,4e-05]
[1755861838763,6.43756675,112550.0,112540.0,4e-05]
[1755861838987,6.44056675,112550.0,112540.0,0.00104]
[1755861839195,6.43757261,112550.0,112540.0,4e-05]
[1755861839539,6.45348344,112550.0,112540.0,0.00104]
[1755861839892,6.45348344,112550.0,112540.0,0.00419]
[1755861840441,6.45348344,112550.0,112540.0,0.00104]
[1755861841414,6.45348344,112550.0,112540.0,0.00419]
[1755861844205,6.4472718,112550.0,112540.0,0.00419]
[1755861844424,6.78948652,112550.0,112540.0,0.00419]
[1755861844756,6.79570195,112550.0,112540.0,0.00419]
[1755861844975,6.86406195,112550.0,112540.0,0.00419]
[1755861847515,6.86406195,112550.0,112540.0,0.00104]
[1755861847716,6.89199381,112550.0,112540.0,0.00104]
[1755861847927,6.89199381,112550.0,112530.0,0.03722085]
[1755861847928,0.51771459,112540.0,112530.0,0.03722085]
[1755861848101,6.75523085,112540.0,112530.0,0.03722085]
[1755861848311,6.75523085,112540.0,112530.0,0.04037085]
[1755861848745,6.78196085,112540.0,112530.0,0.04037085]
[1755861849220,6.75402899,112540.0,112530.0,0.04037085]
[1755861849461,6.72144646,112540.0,112530.0,0.04037085]
[1755861849842,6.72244646,112540.0,112530.0,0.04347085]
[1755861849988,6.72344646,112540.0,112530.0,0.04347085]
[1755861850611,6.74002923,112540.0,112530.0,0.04347085]
[1755861850819,6.74002976,112540.0,112530.0,0.04347085]
[1755861852759,6.74002976,112540.0,112530.0,0.03822085]
[1755861852931,6.76796162,112540.0,112530.0,0.03822085]
[1755861853795,6.75137832,112540.0,112530.0,0.03822085]
[1755861853998,6.76796451,112540.0,112530.0,0.03822085]
[1755861854212,6.72344646,112540.0,112530.0,0.03822085]
[1755861854442,6.74003313,112540.0,112530.0,0.03822085]
[1755861854642,6.76796499,112540.0,112530.0,0.03822085]
[1755861855028,7.82686939,112540.0,112530.0,0.03822085]
[1755861855216,7.83308962,112540.0,112530.0,0.03822085]
[1755861857254,7.8330892,112540.0,112530.0,0.03822085]
[1755861860298,7.83309005,112540.0,112530.0,0.03822085]
[1755861860842,7.84700191,112540.0,112530.0,0.03822085]
[1755861861337,7.66839005,112540.0,112530.0,0.03822085]
[1755861861531,7.81903005,112540.0,112530.0,0.03822085]
[1755861863182,7.79622272,112540.0,112530.0,0.03822085]
[1755861863378,7.8190319,112540.0,112530.0,0.03822085]
[1755861863641,7.84696376,112540.0,112530.0,0.03822085]
[1755861863849,7.93383284,112540.0,112530.0,0.03822085]
[1755861864442,7.84696319,112540.0,112530.0,0.04327085]
[1755861864644,7.81903133,112540.0,112530.0,0.04327085]
[1755861864859,7.8128108,112540.0,112530.0,0.04327085]
[1755861864993,7.8128108,112540.0,112530.0,0.03822085]
[1755861865204,7.8128108,112540.0,112530.0,0.04128085]
[1755861865428,6.78648893,112540.0,112530.0,0.04128085]
[1755861866453,7.82713855,112540.0,112530.0,0.04128085]
[1755861866903,7.81322669,112540.0,112530.0,0.04128085]
[1755861867103,7.79889894,112540.0,112530.0,0.04128085]
[1755861868504,7.76627641,112540.0,112530.0,0.04327085]
[1755861868668,7.61567641,112540.0,112530.0,0.04327085]
[1755861868882,6.73995454,112540.0,112530.0,0.04327085]
[1755861869073,6.72336646,112540.0,112530.0,0.04327085]
[1755861869938,6.75129832,112540.0,112530.0,0.04327085]
[1755861870223,6.76520986,112540.0,112530.0,0.04128085]
[1755861871093,7.79153173,112540.0,112530.0,0.04128085]
[1755861871302,7.79153173,112540.0,112530.0,0.04327085]
[1755861872552,7.79153173,112540.0,112530.0,0.04128085]
[1755861873365,7.8081237,112540.0,112530.0,0.04128085]
[1755861873614,7.8081237,112540.0,112530.0,0.04327085]
[1755861873790,7.6575237,112540.0,112530.0,0.04327085]
[1755861873965,6.737278,112540.0,112530.0,0.04327085]
[1755861874178,6.586678,112540.0,112530.0,0.04327085]
[1755861874696,6.737278,112540.0,112530.0,0.04327085]
[1755861875335,6.753873,112540.0,112530.0,0.04327085]
[1755861876131,6.753873,112540.0,112530.0,0.04128085]
[1755861876335,7.84070926,112540.0,112530.0,0.04128085]
[1755861876806,7.83835449,112540.0,112530.0,0.05552847]
[1755861877420,6.81203262,112540.0,112530.0,0.05751847]
[1755861877558,6.78410076,112540.0,112530.0,0.05751847]
[1755861879242,7.81042263,112540.0,112530.0,0.05751847]
[1755861879452,7.81664805,112540.0,112530.0,0.05751847]
[1755861880059,7.80273651,112540.0,112530.0,0.05751847]
[1755861880427,7.80273651,112540.0,112530.0,0.04327085]
[1755861881730,7.80274611,112540.0,112530.0,0.04327085]
[1755861882612,7.80274642,112540.0,112530.0,0.04327085]
[1755861882818,7.83067828,112540.0,112530.0,0.04327085]
[1755861883034,5.7919461,112540.0,112530.0,0.04327085]
[1755861883234,7.84458984,112540.0,112530.0,0.04327085]
[1755861883640,7.81665798,112540.0,112530.0,0.05771747]
[1755861884721,7.84458984,112540.0,112530.0,0.05771747]
[1755861884931,7.81666105,112540.0,112530.0,0.05771747]
[1755861885175,7.66606105,112540.0,112530.0,0.05771747]
[1755861885385,7.84455291,112540.0,112530.0,0.05771747]
[1755861885566,7.84455291,112540.0,112530.0,0.04327085]
[1755861886384,7.83064135,112540.0,112530.0,0.04327085]
[1755861889285,7.80270949,112540.0,112530.0,0.04327085]
[1755861889491,7.81662093,112540.0,112530.0,0.04327085]
[1755861890905,7.81039425,112540.0,112530.0,0.04327085]
[1755861891104,7.81662259,112540.0,112530.0,0.04327085]
[1755861891416,7.84455445,112540.0,112530.0,0.04327085]
[1755861891610,7.81197235,112540.0,112530.0,0.04327085]
[1755861892722,7.78404049,112540.0,112530.0,0.04327085]
[1755861892926,7.78404049,112540.0,112530.0,0.04128085]
[1755861893246,7.81197235,112540.0,112530.0,0.03822085]
[1755861893832,7.81197235,112540.0,112520.0,0.1044353]
[1755861894036,6.72454422,112530.0,112520.0,0.1044353]
[1755861894236,6.72254411,112530.0,112520.0,0.1065953]
[1755861895411,6.72254411,112530.0,112520.0,0.10167927]
[1755861895615,6.7779606,112530.0,112520.0,0.10167927]
[1755861896223,0.51774617,112520.0,112510.0,0.070115]
[1755861896388,6.75514243,112520.0,112510.0,0.072275]
[1755861896929,6.79578753,112520.0,112510.0,0.072275]
[1755861897630,6.79778753,112520.0,112510.0,0.076275]
[1755861897928,6.59754435,112520.0,112510.0,0.076275]
[1755861898134,6.77529052,112520.0,112510.0,0.076275]
[1755861899740,6.76137742,112520.0,112510.0,0.076275]
[1755861901201,6.70086303,112520.0,112510.0,0.076275]
[1755861902156,0.52398116,112520.0,112510.0,0.14671304]
[1755861902401,0.20322817,112520.0,112510.0,0.23359779]
[1755861902693,0.88744275,112520.0,112510.0,0.23359779]
[1755861902895,0.88744275,112520.0,112510.0,0.29670794]
[1755861903124,1.22744275,112520.0,112510.0,0.47446991]
[1755861903328,0.88744275,112520.0,112510.0,0.47446991]
[1755861903522,1.22744275,112520.0,112510.0,0.47446991]
[1755861903662,0.88533546,112520.0,112510.0,0.47446991]
[1755861904004,0.89924753,112520.0,112510.0,0.47446991]
[1755861904507,0.55714024,112520.0,112510.0,0.47446991]
[1755861905429,0.03939407,112520.0,112510.0,0.8164851]
[1755861905996,0.03939407,112520.0,112510.0,0.47446991]
[1755861906377,0.03739407,112520.0,112510.0,0.47046991]
[1755861906799,0.025482,112520.0,112510.0,0.48146991]
[1755861906995,0.025482,112520.0,112510.0,0.8234851]
[1755861908086,0.025482,112520.0,112510.0,0.48146991]
[1755861908386,0.002,112520.0,112510.0,0.48146991]
[1755861908597,0.002,112520.0,112510.0,0.41103187]
[1755861909334,0.002,112520.0,112510.0,0.42848089]
[1755861910444,0.01591089,112520.0,112510.0,0.42848089]
[1755861911680,0.19365706,112520.0,112510.0,0.57896089]
[1755861913065,0.19365706,112520.0,112510.0,0.2332699]
[1755861913218,0.19365706,112520.0,112510.0,0.3837499]
[1755861913219,0.53567225,112520.0,112510.0,0.3837499]
[1755861913420,0.53567225,112520.0,112510.0,0.2332699]
[1755861914173,0.56239625,112520.0,112510.0,0.2332699]
[1755861914340,0.56347625,112520.0,112510.0,0.2282699]
[1755861914772,0.56247625,112520.0,112510.0,0.2222699]
[1755861915391,0.71295625,112520.0,112510.0,0.2222699]
[1755861915581,0.71295625,112520.0,112510.0,0.066875]
[1755861915960,1.05395625,112520.0,112510.0,0.069875]
[1755861916154,1.44614355,112520.0,112510.0,0.069875]
[1755861916356,1.44514355,112520.0,112510.0,0.066875]
[1755861916480,1.44514355,112520.0,112510.0,0.0834831]
[1755861916694,1.44714355,112520.0,112510.0,0.0874831]
[1755861916894,1.44614355,112520.0,112510.0,0.0834831]
[1755861917096,1.44514355,112520.0,112510.0,0.066875]
[1755861917327,1.44614355,112520.0,112510.0,0.068875]
[1755861917523,6.44714355,112520.0,112510.0,0.070875]
[1755861917727,6.29666355,112520.0,112510.0,0.070875]
[1755861919403,6.31057758,112520.0,112510.0,0.070875]
[1755861921887,6.27740644,112520.0,112510.0,0.070875]